fUSD/lending_fUSD_20241219
["ID","MTS","AMOUNT","RATE_DAILY","PERIOD"]
[345976579,1734586231948,-20000.0,0.0002,2]
[345976580,1734586231958,-250.0,0.00020091,2]
[345976581,1734586231968,-367.45,0.00020108,2]
[345976582,1734586231977,-250.0,0.00020108,2]
[345976583,1734586231986,-1000.0,0.00020131,2]
[345976584,1734586231996,-168.23,0.00020248,2]
[345976585,1734586232006,-19483.42,0.00020251,2]
[345976586,1734586232015,-711.83,0.00020341,2]
[345976587,1734586232024,-364.93,0.00020356,2]
[345976588,1734586232033,-436.03,0.00020356,2]
[345976589,1734586232042,-976.54,0.00020356,2]
[345976590,1734586232051,-435.76,0.00020356,2]
[345976591,1734586232061,-975.85,0.00020356,2]
[345976592,1734586232070,-364.66,0.00020356,2]
[345976593,1734586232080,-150.0,0.00020356,2]
[345976594,1734586232089,-769.47,0.00020541,2]
[345976595,1734586232099,-150.0,0.00020556,2]
[345976596,1734586232109,-729.64,0.00020556,2]
[345976597,1734586232118,-154.0,0.00020556,2]
[345976598,1734586232127,-871.81,0.00020556,2]
[345976600,1734586232137,-152.47,0.00020556,2]
[345976602,1734586232146,-238.21,0.00020556,2]
[345976604,1734586232155,-976.54,0.00020556,2]
[345976606,1734586232164,-150.0,0.00020556,2]
[345976608,1734586232174,-168.12,0.00020668,2]
[345976610,1734586232184,-250.0,0.00020699,2]
[345976612,1734586232193,-156.36,0.00020708,2]
[345976614,1734586232202,-171.6,0.0002071,2]
[345976616,1734586232212,-756.13,0.00020773,2]
[345976618,1734586232221,-5861.44400006,0.0002079,2]
[345976620,1734586232231,-337.61,0.00020822,2]
[345976622,1734586232240,-3125.93,0.00020825,2]
[345976624,1734586232248,-167.15258836,0.000209,2]
[345976625,1734586232258,-150.1587914,0.000209,2]
[345976626,1734586232267,-312.24044203,0.000209,2]
[345976627,1734586232277,-389.67470066,0.000209,2]
[345976628,1734586232287,-191.89978734,0.00020914,2]
[345976629,1734586232296,-202.07462463,0.00020914,2]
[345976630,1734586232305,-999.99,0.00020951,2]
[345976631,1734586232315,-1092.09,0.00020951,2]
[345976632,1734586232324,-9999.99,0.00020951,2]
[345976633,1734586232333,-150.99,0.00020951,2]
[345976634,1734586232343,-1507.56,0.00020951,2]
[345976635,1734586232353,-150.99,0.00020951,2]
[345976636,1734586232362,-9999.99,0.00020951,2]
[345976637,1734586232371,-500.0,0.00020973,2]
[345976638,1734586232380,-500.0,0.00020973,2]
[345976639,1734586232390,-373.92977194,0.00020973,2]
[345976640,1734586232399,-500.0,0.00020973,2]
[345976641,1734586232408,-673.42,0.00020999,2]
[345976642,1734586232418,-3550.99317504,0.00020999,2]
[345976643,1734586232646,-2110.13964534,0.00020999,2]
[345976644,1734586232656,-94549.66567824,0.00021,2]
[345976645,1734586232667,-47405.7002195,0.00021,2]
[345976651,1734586237800,-170.57594983,0.0001968,2]
[345976652,1734586237810,-4386.28833137,0.00021,2]
[345976653,1734586237937,-371.15934766,0.00021,2]
[345976654,1734586237997,-12504.89411839,0.00021,2]
[345976657,1734586239798,-764.75220241,0.00021,2]
[345976658,1734586239914,-8924.43097402,0.00021,2]
[345976659,1734586239926,-10598.25405389,0.00021,2]
[345976660,1734586240030,-16795.2913419,0.00021,2]
[345976682,1734586242830,-170.57594983,0.00019991,2]
[345976683,1734586242839,-237.77432044,0.00021,2]
[345976686,1734586245696,-140009.19290679,0.00021,2]
[345976687,1734586245705,-3350.81445807,0.00021,3]
[345976688,1734586245715,-55508.38094764,0.00021,2]
[345976689,1734586245754,-943.09683143,0.00021,2]
[345976690,1734586245874,-2024.7,0.00021,2]
[345976691,1734586245991,-5570.45453968,0.00021,2]
[345976692,1734586267088,158.2,0.00010137,2]
[345976695,1734586607366,25459.8369036,0.00024,120]
[345976696,1734586615760,450.0,0.00013,2]
[345976697,1734586641639,-500.0,0.00023,30]
[345976698,1734586641663,-350.0,0.00023,30]
[345976699,1734586831578,165.28,0.00013699,2]
[345976700,1734586863450,800.0,0.00013699,2]
[345976702,1734587157348,157.93,0.00010137,2]
[345976718,1734587431954,-560.249985,0.00018246,2]
[345976719,1734587431966,-122.710015,0.00018246,2]
[345976720,1734587431975,-1000.0,0.00019643,2]
[345976721,1734587431986,-168.23,0.00019683,2]
[345976722,1734587431995,-8084.26,0.00019719,2]
[345976723,1734587432005,-9298.02,0.00019748,2]
[345976724,1734587432014,-844.9,0.00019829,2]
[345976725,1734587432024,-250.0,0.00019903,2]
[345976726,1734587432037,-8507.26218499,0.00019991,2]
[345976727,1734587432260,-7585.6103163,0.00019991,2]
[345976728,1734587432277,-949.94196682,0.00019991,2]
[345976729,1734587432290,-550.05803318,0.00019991,2]
[345976730,1734587432303,-6144.89644038,0.00019991,2]
[345976731,1734587432317,-162.23105833,0.00019991,2]
[345976732,1734587432328,-200.0,0.00020017,2]
[345976733,1734587432338,-152.24,0.00020018,30]
[345976734,1734587432349,-250.0,0.00020075,2]
[345976735,1734587432360,-164.77,0.00020075,2]
[345976736,1734587432370,-82.24924123,0.00020108,2]
[345976741,1734587437853,-1500.0,0.00019618,2]
[345976742,1734587437863,-89.35075877,0.00020108,2]
[345976743,1734587437872,-14989.79107236,0.00020172,2]
[345976744,1734587437883,-9934.68613591,0.00020172,2]
[345976745,1734587437909,-654.06454835,0.00020172,2]
[345976746,1734587438023,-3042.10186867,0.00020172,2]
[345976747,1734587438039,-428.03,0.00020172,2]
[345976748,1734587438049,-263.73,0.00020172,2]
[345976749,1734587438060,-1460.481176,0.00020172,2]
[345976750,1734587438073,-250.921615,0.00020172,2]
[345976751,1734587438084,-1360.72366522,0.00020172,2]
[345976752,1734587438190,-13498.46991849,0.00020172,2]
[345976753,1734587438200,-1646.61,0.00020193,2]
[345976754,1734587438209,-250.0,0.00020223,2]
[345976755,1734587438218,-150.0,0.00020268,2]
[345976756,1734587438227,-167.06,0.00020392,2]
[345976757,1734587438237,-682.96,0.00020509,2]
[345976758,1734587438246,-315.68,0.00020527,2]
[345976759,1734587438255,-158.672,0.00020527,2]
[345976760,1734587438264,-1315.831,0.00020527,2]
[345976761,1734587438273,-250.0,0.00020721,2]
[345976762,1734587438282,-5002.0,0.00020767,2]
[345976763,1734587438291,-1000.0,0.00020814,2]
[345976764,1734587438300,-302.69,0.00020822,2]
[345976765,1734587438309,-481.117,0.000209,2]
[345976766,1734587438318,-21756.26424411,0.000209,2]
[345976767,1734587438331,-320.41781777,0.000209,2]
[345976768,1734587438340,-1531.12595296,0.000209,2]
[345976769,1734587438349,-203.71206358,0.000209,2]
[345976771,1734587438358,-173.20682112,0.000209,2]
[345976773,1734587438367,-150.99,0.00020951,2]
[345976775,1734587438376,-500.0,0.00020973,2]
[345976777,1734587438385,-167.37,0.00020984,2]
[345976779,1734587438395,-150.4,0.0002099,2]
[345976781,1734587438404,-150.4,0.0002099,2]
[345976783,1734587438413,-150.4,0.0002099,2]
[345976784,1734587438423,-645.36,0.00020999,2]
[345976785,1734587438433,-7500.0,0.00020999,2]
[345976786,1734587438442,-13944.32901099,0.00021,2]
[345976787,1734587439992,-5962.54038014,0.00021,2]
[345976788,1734587440133,-72866.2593287,0.00021,2]
[345976789,1734587440145,-114606.7345,0.00021,2]
[345976790,1734587440156,-496.12421146,0.00021,2]
[345976791,1734587440167,-499.10677427,0.00021,2]
[345976792,1734587440193,-690.30094569,0.00021,2]
[345976824,1734587443335,-253970.60641044,0.00021,2]
[345976825,1734587443344,-1675.40722904,0.00021,3]
[345976827,1734587443353,-313221.6833232,0.00021,2]
[345976829,1734587443392,-6177.18706618,0.00021,2]
[345976830,1734587443405,-26399.99999789,0.00021,2]
[345976831,1734587443451,-628.211996,0.00021,2]
[345976832,1734587443567,-1613.03388438,0.00021,2]
[345976833,1734587443581,-11467.06769897,0.00021,2]
[345976834,1734587443592,-8127.0,0.00021,2]
[345976835,1734587443603,-73691.93689703,0.00021,2]
[345976836,1734587443614,-16969.54342202,0.00021,2]
[345976837,1734587443626,-369.04840763,0.00021,2]
[345976838,1734587443637,-500.0,0.00021,2]
[345976839,1734587443649,-28750.02655478,0.00021,2]
[345976843,1734587445834,-259.78313378,0.000209,2]
[345976844,1734587445843,-183881.3033863,0.00021,2]
[345976845,1734587445855,-882.47667716,0.00021,2]
[345976846,1734587445890,-15398.6716932,0.00021,2]
[345976847,1734587445901,-1005.63923628,0.00021,2]
[345976848,1734587445913,-2378.35760407,0.00021,2]
[345976849,1734587445950,-11772.95709027,0.00021,2]
[345976850,1734587446013,-56837.46052,0.00021,2]
[345976851,1734587446024,-20899.90606739,0.00021,2]
[345976852,1734587446132,-22200.000002,0.00021,2]
[345976853,1734587446143,-8103.17191918,0.00021,2]
[345976854,1734587446190,-27379.80190212,0.00021,2]
[345976855,1734587761790,165.51,0.00013699,2]
[345976856,1734587795304,153.121914,0.00024,120]
[345976868,1734588211603,156.3,0.00010137,2]
[345976888,1734588365873,731.65,0.00017752,2]
[345976891,1734588418309,450.0,0.00013,2]
[345976900,1734588632054,-12422.09876625,0.00018576,2]
[345976901,1734588632063,-758.83998307,0.00018676,2]
[345976902,1734588632072,-171.6,0.00019457,2]
[345976903,1734588632082,-1490.1140774,0.00019457,2]
[345976904,1734588632091,-1000.0,0.00019524,2]
[345976905,1734588632100,-167.38,0.00019575,2]
[345976906,1734588632109,-250.0,0.00019618,2]
[345976907,1734588632117,-250.0,0.00019739,2]
[345976908,1734588632127,-200.0,0.00019739,2]
[345976909,1734588632136,-300.0,0.00019805,2]
[345976910,1734588632145,-1817.11,0.00019806,2]
[345976911,1734588632155,-670.73,0.00019852,2]
[345976912,1734588632163,-524.08,0.0001991,2]
[345976913,1734588632173,-481.112,0.0001995,2]
[345976914,1734588632182,-155.24,0.00019981,2]
[345976915,1734588632191,-161.06,0.00019987,2]
[345976916,1734588632200,-731.65,0.00020016,2]
[345976917,1734588632209,-250.0,0.00020067,2]
[345976918,1734588632219,-250.0,0.00020141,2]
[345976919,1734588632228,-500.0,0.00020219,2]
[345976920,1734588632237,-152.24,0.00020221,30]
[345976921,1734588632246,-164.77,0.00020303,2]
[345976922,1734588632256,-1052.664,0.00020304,2]
[345976923,1734588632265,-6917.81661306,0.00020569,2]
[345976924,1734588632284,-1539.50161743,0.00020569,2]
[345976925,1734588632295,-358.81647166,0.00020569,2]
[345976926,1734588632306,-3943.99153659,0.00020569,2]
[345976927,1734588632317,-11139.87376126,0.00020569,2]
[345976928,1734588632326,-246.4611081,0.0002058,2]
[345976929,1734588632335,-1796.58254,0.0002079,2]
[345976930,1734588632345,-300.58,0.00020814,2]
[345976931,1734588632354,-242.15,0.00020822,2]
[345976932,1734588632364,-26606.18604248,0.000209,2]
[345976933,1734588632373,-288.37603593,0.000209,2]
[345976934,1734588632382,-358.0,0.00020959,2]
[345976935,1734588632391,-500.0,0.00020973,2]
[345976936,1734588632401,-150.41,0.0002099,2]
[345976937,1734588632413,-618.47,0.00020999,2]
[345976939,1734588632423,-837.70361452,0.00021,3]
[345976941,1734588632432,-48790.20689635,0.00021,2]
[345976944,1734588632449,-12515.80414999,0.00021,2]
[345976946,1734588632460,-1211.3,0.00021,2]
[345976956,1734588637978,-1013.9,0.00018482,2]
[345976957,1734588638251,-4118.790756,0.00018482,2]
[345976958,1734588638261,-6029.294444,0.00021,2]
[345976959,1734588638272,-292.64624119,0.00021,2]
[345976960,1734588638283,-24052.01273388,0.00021,2]
[345976961,1734588638294,-1642.60428772,0.00021,2]
[345976962,1734588638390,-25933.96890745,0.00021,2]
[345976964,1734588640203,-8941.57946996,0.00021,2]
[345976965,1734588640350,-2473.94,0.00021,2]
[345976966,1734588640361,-36795.20253824,0.00021,2]
[345976971,1734588643081,-21004.3686814,0.00021,2]
[345976972,1734588643229,-1813.7999,0.00021,2]
[345976991,1734588646127,-300.0,0.00019,4]
[345976992,1734588646137,-4776.633,0.00021,2]
[345976993,1734588646195,-35244.63953066,0.00021,2]
[345976994,1734588646204,-28211.46156599,0.00021,2]
[345976995,1734588646274,-29113.47354023,0.00021,2]
[345976996,1734588646285,-253250.0,0.00021,2]
[345976997,1734588646297,-45499.5209961,0.00021,2]
[345976998,1734589027151,295.37,0.00016002,2]
[345977000,1734589109187,157.82,0.00010137,2]
[345977001,1734589188113,169.9,0.00015976,2]
[345977002,1734589509132,218922.59940209,0.00013,2]
[345977012,1734589697452,165.51,0.00013699,2]
[345977029,1734589809110,224.69,0.00015,3]
[345977040,1734589832268,-658.48,0.00018031,2]
[345977041,1734589832282,-1670.04816245,0.00019549,2]
[345977042,1734589832292,-250.0,0.00019609,2]
[345977043,1734589832302,-1241.01141993,0.00019609,2]
[345977044,1734589832348,-550.0,0.00019609,2]
[345977045,1734589832362,-1409.25229469,0.00019609,2]
[345977046,1734589832437,-320.29041264,0.00019609,2]
[345977047,1734589832584,-479.44587274,0.00019609,2]
[345977048,1734589832595,-250.0,0.00019649,2]
[345977049,1734589832606,-164.77,0.0001968,2]
[345977050,1734589832616,-250.0,0.00019797,2]
[345977051,1734589832627,-200.0,0.00019797,2]
[345977052,1734589832639,-1000.0,0.00019838,2]
[345977053,1734589832649,-335.36,0.00019935,2]
[345977054,1734589832659,-461.002,0.0001995,2]
[345977055,1734589832670,-3503.67248865,0.00019978,2]
[345977062,1734589838248,-807.71262091,0.00019978,2]
[345977063,1734589838546,-7164.75109044,0.00019978,2]
[345977064,1734589838557,-13008.28381041,0.0001998,2]
[345977065,1734589838567,-236.0,0.0002,5]
[345977066,1734589838578,-236.0,0.0002,4]
[345977067,1734589838588,-237.94,0.0002,6]
[345977068,1734589838598,-780.73,0.00020078,2]
[345977069,1734589838609,-250.0,0.00020078,2]
[345977070,1734589838619,-827.15,0.0002017,2]
[345977071,1734589838629,-1935.0,0.00020173,2]
[345977072,1734589838640,-589.47746374,0.00020195,2]
[345977073,1734589838651,-5045.94,0.00020228,2]
[345977074,1734589838662,-658.48,0.00020295,2]
[345977075,1734589838672,-152.24,0.00020468,30]
[345977076,1734589838682,-1497.15211,0.0002079,2]
[345977077,1734589838693,-193.72,0.00020822,2]
[345977078,1734589838704,-842.132,0.00020899,2]
[345977079,1734589838714,-1000.0,0.000209,2]
[345977080,1734589838725,-2500.0,0.000209,2]
[345977081,1734589838735,-162.7639,0.000209,2]
[345977082,1734589838745,-173.20682107,0.000209,2]
[345977083,1734589838755,-5000.0,0.000209,2]
[345977084,1734589838765,-150.42,0.0002099,2]
[345977085,1734589838781,-592.7,0.00020999,2]
[345977086,1734589838792,-1276.0,0.00021,2]
[345977087,1734589838801,-200633.05072439,0.00021,2]
[345977088,1734589838815,-36754.91873751,0.00021,2]
[345977089,1734589838826,-858.72422274,0.00021,3]
[345977090,1734589838837,-26239.85703975,0.00021,2]
[345977091,1734589838850,-80949.69043919,0.00021,2]
[345977092,1734589838868,-3832.10182229,0.00021,2]
[345977093,1734589838881,-1022.8,0.00021,2]
[345977094,1734589838896,-268.28055403,0.00021,2]
[345977095,1734589838913,-6120.89150281,0.00021,2]
[345977096,1734589838926,-1039.58900093,0.00021,2]
[345977097,1734589838952,-1001.4608813,0.00021,2]
[345977098,1734589838964,-961.29224266,0.00021,2]
[345977099,1734589840314,-375.9045545,0.00021,2]
[345977105,1734589843493,-57603.2592294,0.00021,2]
[345977108,1734589846255,-5085.4790039,0.00021,2]
[345977109,1734589846266,-18334.3008633,0.00021,2]
[345977110,1734589846344,-3609.92367057,0.00021,2]
[345977111,1734589846435,-263560.72127938,0.00021,2]
[345977112,1734589846455,-2022.4,0.00021,2]
[345977113,1734589846546,-303.39,0.00021,2]
[345977114,1734589994551,154.78,0.00016193,2]
[345977115,1734590031698,159.39,0.00010137,2]
[345977118,1734590132894,-300.0,0.00021,8]
[345977119,1734590147337,-300.0,0.00021,7]
[345977123,1734590204718,406.0,0.00024,120]
[345977124,1734590220410,450.0,0.00013,2]
[345977125,1734590221496,500.0,0.00015,2]
[345977126,1734590300641,170.12,0.00015998,2]
[345977130,1734590335564,-702.37,0.0001818,2]
[345977131,1734590335590,-461.641,0.0001995,2]
[345977132,1734590386740,-335.72903846,0.0001985,2]
[345977133,1734590386766,-664.27096154,0.00019998,2]
[345977153,1734591032442,-8177.36087738,0.00019696,2]
[345977154,1734591032451,-4000.0,0.00019755,2]
[345977155,1734591032460,-624.59,0.00019796,2]
[345977156,1734591032470,-250.0,0.00019797,2]
[345977157,1734591032478,-300.0,0.000199,4]
[345977158,1734591032487,-250.0,0.00019911,2]
[345977159,1734591032497,-442.721,0.0001995,2]
[345977160,1734591032508,-335.72903846,0.00019998,2]
[345977161,1734591032519,-300.0,0.0002,5]
[345977162,1734591032530,-300.0,0.0002,6]
[345977163,1734591032540,-250.0,0.00020038,2]
[345977164,1734591032549,-300.0,0.00020088,2]
[345977165,1734591032558,-728.91819516,0.00020089,2]
[345977166,1734591032569,-2516.43813202,0.00020089,2]
[345977167,1734591032581,-20654.64367282,0.00020089,2]
[345977168,1734591032590,-167.38,0.0002016,2]
[345977169,1734591032599,-600.86,0.00020164,2]
[345977170,1734591032609,-167.63,0.00020166,2]
[345977171,1734591032618,-575.41,0.00020429,2]
[345977172,1734591032627,-702.37,0.00020444,2]
[345977173,1734591032636,-1009.0,0.000208,2]
[345977174,1734591032646,-154.97,0.00020822,2]
[345977175,1734591032655,-5000.0,0.000209,2]
[345977176,1734591032665,-656.0839,0.000209,2]
[345977177,1734591032674,-7476.9521063,0.000209,3]
[345977178,1734591032683,-173.20682107,0.000209,2]
[345977179,1734591032693,-3834.9503064,0.000209,5]
[345977180,1734591032703,-673.705,0.000209,2]
[345977181,1734591032712,-572.09119746,0.000209,2]
[345977182,1734591032739,-492.44519785,0.000209,2]
[345977183,1734591032748,-151.0,0.0002099,2]
[345977184,1734591032757,-42369.6998206,0.00021,7]
[345977185,1734591032772,-207630.3001794,0.00021,7]
[345977186,1734591032781,-1043.0,0.00021,2]
[345977187,1734591032790,-28126.6998206,0.00021,2]
[345977273,1734591038432,-4521.77334971,0.000209,2]
[345977274,1734591038529,-1501.26519847,0.000209,2]
[345977275,1734591038567,-19888.21638387,0.000209,2]
[345977276,1734591038577,-150567.28491035,0.00021,2]
[345977277,1734591038588,-429.36211137,0.00021,3]
[345977278,1734591038598,-724.02437875,0.00021,2]
[345977279,1734591038607,-152347.44697044,0.00021,3]
[345977280,1734591038700,-1520.0,0.00021,3]
[345977291,1734591040456,-5000.0,0.000209,2]
[345977292,1734591040466,-54007.4511261,0.00021,3]
[345977293,1734591040617,-7985.5,0.00021,3]
[345977294,1734591040662,-46190.2597,0.00021,3]
[345977295,1734591040673,-920.877997,0.00021,3]
[345977296,1734591040684,-688.88999997,0.00021,3]
[345977297,1734591040804,-348989.82444238,0.00021,3]
[345977298,1734591040815,-368.505,0.00021,3]
[345977322,1734591045384,156.25,0.00010137,2]
[345977323,1734591045403,-2486.64111936,0.00021,3]
[345977324,1734591045506,-6048.78065675,0.00021,3]
[345977325,1734591045518,-1644.5419948,0.00021,3]
[345977326,1734591045529,-5218.10614076,0.00021,3]
[345977327,1734591045541,-3771.173325,0.00021,3]
[345977328,1734591045553,-10087.99038887,0.00021,3]
[345977329,1734591045670,-15183.59141287,0.00021,3]
[345977330,1734591045681,-3120.0000015,0.00021,3]
[345977331,1734591045692,-17476.08560783,0.00021,3]
[345977332,1734591045703,-186071.14951505,0.00021,3]
[345977333,1734591045715,-101380.0,0.00021,3]
[345977334,1734591045727,-13682.26137756,0.00021,3]
[345977335,1734591045738,-774.34667159,0.00021,3]
[345977336,1734591045788,-4525.04351931,0.00021,3]
[345977337,1734591045803,-13348.10139249,0.00021,3]
[345977338,1734591045815,-4849.81496569,0.00021,3]
[345977339,1734591045848,-585773.73042067,0.00021,3]
[345977340,1734591045860,-3039.9,0.00021,3]
[345977351,1734591172740,170.12,0.00016398,2]
[345977354,1734591530528,20203.7,0.00024,120]
[345977356,1734591958127,160.33,0.00015753,2]
[345977357,1734592023776,450.0,0.00013,2]
[345977366,1734592142533,157.54,0.00010137,2]
[345977376,1734592231650,-297.31806467,0.00018442,2]
[345977377,1734592231660,-22.59644881,0.00018442,2]
[345977378,1734592231795,-715.26355119,0.00018442,2]
[345977379,1734592231804,-191.67798,0.0001956,2]
[345977380,1734592231814,-700.32,0.00019659,2]
[345977381,1734592231823,-250.0,0.00019762,2]
[345977382,1734592231833,-1476.92446881,0.00019773,2]
[345977383,1734592231941,-856.04257068,0.00019773,2]
[345977420,1734592237583,-1000.0,0.00019618,2]
[345977421,1734592237595,-477.05,0.00019773,2]
[345977422,1734592237680,-1189.98296051,0.00019773,2]
[345977423,1734592237691,-250.0,0.00019834,2]
[345977424,1734592237703,-199.14413374,0.0001985,2]
[345977425,1734592237715,-442.822,0.0001995,2]
[345977426,1734592237726,-250.0,0.00019972,2]
[345977427,1734592237736,-169.54,0.00020003,2]
[345977428,1734592237747,-250.0,0.00020241,2]
[345977429,1734592237757,-428.65,0.00020258,2]
[345977430,1734592237767,-199.14413373,0.00020275,2]
[345977431,1734592237783,-300.0,0.00020292,2]
[345977432,1734592237792,-10806.44537481,0.00020293,2]
[345977444,1734592239760,-13093.55462519,0.00020293,2]
[345977445,1734592239770,-500.98,0.00020366,2]
[345977446,1734592239786,-167.38,0.00020396,2]
[345977447,1734592239795,-450.0,0.00020486,2]
[345977448,1734592239805,-199.14413373,0.000207,2]
[345977449,1734592239814,-1981.0,0.000207,2]
[345977450,1734592239824,-737.86,0.00020706,2]
[345977451,1734592239834,-472.63,0.00020724,2]
[345977452,1734592239844,-23745.96507925,0.0002079,2]
[345977453,1734592239914,-1013.65,0.0002079,2]
[345977454,1734592239955,-253.94130098,0.0002079,2]
[345977466,1734592242722,-4077.88492075,0.0002079,2]
[345977467,1734592242732,-1247.62676,0.0002079,2]
[345977468,1734592242741,-1008.5054,0.000208,2]
[345977469,1734592242750,-154.97,0.00020822,2]
[345977470,1734592242759,-166.27,0.00020866,2]
[345977471,1734592242768,-393.17750282,0.0002089,2]
[345977472,1734592242779,-3371.0,0.0002089,3]
[345977473,1734592242788,-15380.56541643,0.0002089,2]
[345977474,1734592242957,-7939.56402237,0.0002089,2]
[345977475,1734592242966,-958.08275577,0.0002089,2]
[345977476,1734592242977,-3585.6796,0.000209,2]
[345977477,1734592242986,-260842.78894244,0.000209,2]
[345977478,1734592242995,-151.0,0.0002099,2]
[345977479,1734592243004,-283.10027114,0.00020999,2]
[345977480,1734592243013,-350.12013744,0.00020999,2]
[345977481,1734592243022,-500.0,0.00020999,2]
[345977482,1734592243034,-171.52046452,0.00020999,2]
[345977483,1734592243043,-332.74674442,0.00020999,2]
[345977484,1734592243052,-28785.3970619,0.00021,7]
[345977488,1734592245640,-3037.5,0.00021,7]
[345977489,1734592245664,-94501.51996779,0.00021,7]
[345977490,1734592245673,-232972.34287716,0.00021,3]
[345977491,1734592245907,-1857.36920324,0.00021,3]
[345977499,1734592843294,160.33,0.00016302,2]
[345977500,1734593022785,160.69,0.00010137,2]
[345977502,1734593109257,182881.47632885,0.00013,2]
[345977503,1734593120843,10084.78888804,9e-05,2]
[345977504,1734593130862,4402.36533517,9e-05,2]
[345977505,1734593156578,5985.16014736,6.94e-05,2]
[345977506,1734593227204,1232.82674451,0.000157,2]
[345977511,1734593241944,4539.89509281,0.0001305,2]
[345977512,1734593260192,4499.45256462,9e-05,2]
[345977513,1734593280385,57095.70587898,0.00013,2]
[345977536,1734593431981,-664.07,0.00018449,2]
[345977537,1734593431992,-10461.18,0.00019751,2]
[345977538,1734593432001,-1711.84,0.0001982,2]
[345977539,1734593432010,-250.0,0.00019828,2]
[345977540,1734593432020,-200.0,0.00019926,2]
[345977541,1734593432032,-439.849,0.0001995,2]
[345977542,1734593432042,-300.0,0.00019999,2]
[345977543,1734593432051,-14358.57296395,0.0002,2]
[345977544,1734593432060,-300.0,0.00020061,2]
[345977545,1734593432070,-3743.07,0.00020111,2]
[345977546,1734593432079,-214.32,0.00020207,2]
[345977547,1734593432089,-639.74,0.00020268,2]
[345977548,1734593432099,-14159.24920442,0.000203,2]
[345977549,1734593432108,-234.68612663,0.00020302,2]
[345977550,1734593432118,-1000.0,0.00020402,2]
[345977551,1734593432126,-150.0,0.00020445,2]
[345977552,1734593432136,-4000.0,0.00020471,2]
[345977553,1734593432145,-250.0,0.00020548,2]
[345977554,1734593432154,-169.54,0.00020709,2]
[345977555,1734593432163,-150.0,0.00020711,2]
[345977556,1734593432172,-664.07,0.00020713,2]
[345977557,1734593432182,-583.73,0.0002079,2]
[345977558,1734593432192,-570.89,0.000208,2]
[345977559,1734593432201,-377.5578,0.000209,2]
[345977560,1734593432211,-20988.11649492,0.000209,2]
[345977561,1734593432220,-223.397,0.0002093,2]
[345977562,1734593432230,-862.27448022,0.00020939,2]
[345977564,1734593432239,-1039.68897,0.00020999,2]
[345977565,1734593432249,-253350.64697089,0.00021,3]
[345977566,1734593432258,-2003.79,0.00021,2]
[345977567,1734593432268,-158.0,0.00021,4]
[345977569,1734593432277,-6574.46595336,0.00021,2]
[345977570,1734593432287,-14037.5144294,0.00021002,2]
[345977571,1734593432296,-496.96,0.00021139,2]
[345977572,1734593432305,-500.0,0.00021164,2]
[345977573,1734593432315,-153.0,0.00021181,2]
[345977574,1734593432325,-153.0,0.00021181,2]
[345977575,1734593432335,-153.0,0.00021181,2]
[345977576,1734593432344,-153.0,0.00021181,2]
[345977577,1734593432354,-153.0,0.00021181,2]
[345977578,1734593432363,-153.0,0.00021181,2]
[345977579,1734593432373,-153.0,0.00021181,2]
[345977580,1734593432382,-153.0,0.00021181,2]
[345977581,1734593432392,-153.0,0.00021181,2]
[345977582,1734593432401,-153.0,0.00021181,2]
[345977583,1734593432410,-153.0,0.00021181,2]
[345977584,1734593432420,-153.0,0.00021181,2]